bitfinex-derivatives/quotes_SOLF0:USTF0_20250524
["timestamp","ask_amount","ask_price","bid_price","bid_amount"]
[1748127126370,5.6682,176.37,176.35,0.04122213]
[1748127127071,5.6685,176.36,176.35,0.04122213]
[1748127128561,5.6691,176.34,176.29,6.28795418]
[1748127128763,5.6691,176.34,176.29,3.33107231]
[1748127128957,5.6695,176.33,176.28,115.14]
[1748127129162,5.6695,176.33,176.28,118.47107231]
[1748127129566,0.04341836,176.32,176.29,0.03729838]
[1748127131274,0.04341836,176.32,176.31,5.6701]
[1748127154484,0.04341836,176.32,176.31,9.00117231]
[1748127154877,0.04341836,176.32,176.31,9.00355712]
[1748127155076,0.04341836,176.32,176.31,9.00355421]
[1748127162192,0.04341836,176.32,176.31,5.6701]
[1748127162387,0.04341836,176.32,176.31,9.00355421]
[1748127163590,0.04341836,176.32,176.31,11.96350158]
[1748127170096,0.04341836,176.32,176.31,9.00355421]
[1748127171008,0.04341836,176.32,176.31,11.96350158]
[1748127171515,0.04341836,176.32,176.31,9.00355421]
[1748127172107,1.8532,176.39,176.38,5.6678]
[1748127172708,1.8532,176.39,176.37,5.668]
[1748127173412,0.04062145,176.4,176.36,3.36949152]
[1748127173910,0.04062145,176.4,176.38,5.6676]
[1748127174910,0.04062145,176.4,176.39,5.6675]
[1748127179219,2.0251,176.45,176.44,5.6659]
[1748127179401,2.0251,176.45,176.42,3.33345421]
[1748127179607,2.0251,176.45,176.41,3.33345421]
[1748127179807,5.6655,176.46,176.41,9.00015421]
[1748127180307,0.04000856,176.45,176.42,0.03972549]
[1748127180614,0.04000856,176.45,176.42,5.70622549]
[1748127182617,0.04000856,176.45,176.43,5.6662]
[1748127183520,0.04000856,176.45,176.42,0.03972549]
[1748127184718,5.6661,176.44,176.42,0.03972549]
[1748127188718,5.6662,176.43,176.42,0.03972549]
[1748127188916,3.33345421,176.44,176.37,3.33345421]
[1748127189220,3.7539,176.43,176.37,9.00155421]
[1748127189719,3.33345421,176.42,176.35,118.15345421]
[1748127189916,0.04275826,176.4,176.37,0.03822679]
[1748127190119,3.37621247,176.4,176.32,114.82]
[1748127190318,5.6684,176.37,176.33,5.6692]
[1748127191119,5.6684,176.37,176.33,5.70991325]
[1748127195323,5.668,176.38,176.34,5.669]
[1748127196123,5.6682,176.37,176.34,5.669]
[1748127197522,5.6682,176.37,176.33,5.71011325]
[1748127198624,5.6682,176.37,176.34,5.6691]
[1748127202432,5.6682,176.37,176.33,0.04071325]
[1748127203129,5.6682,176.37,176.33,5.71001325]
[1748127205034,1.9884,176.39,176.33,5.71001325]
[1748127205035,5.6686,176.36,176.33,5.71001325]
[1748127205328,114.80002257,176.36,176.26,117.97749455]
[1748127205717,5.6695,176.33,176.29,5.6707]
[1748127206329,5.6695,176.33,176.29,5.70672472]
[1748127210733,5.6692,176.34,176.3,5.6703]
[1748127213336,5.6695,176.33,176.29,5.70662472]
[1748127215137,5.6695,176.33,176.3,5.6704]
[1748127216738,5.6692,176.34,176.3,5.6704]
[1748127217137,114.80002257,176.36,176.29,3.37086304]
[1748127217342,0.04002257,176.36,176.33,3.33483832]
[1748127217541,0.04002257,176.36,176.33,3.37407618]
[1748127217840,0.04002257,176.36,176.34,5.6689]
[1748127218142,0.04002257,176.36,176.33,3.37407618]
[1748127218643,0.04002257,176.36,176.35,5.6688]
[1748127226851,2.257e-05,176.36,176.35,5.6688]
[1748127261878,2.257e-05,176.36,176.35,8.63398805]
[1748127265183,2.257e-05,176.36,176.35,2.96518805]
[1748127265384,2.257e-05,176.36,176.34,111.05320272]
[1748127266184,2.257e-05,176.36,176.35,5.6688]
[1748127271387,2.257e-05,176.36,176.35,8.63452134]
[1748127276578,2.257e-05,176.36,176.35,11.96772406]
[1748127290900,2.257e-05,176.36,176.35,11.96698885]
[1748127295912,2.257e-05,176.36,176.35,8.63452134]
[1748127296111,2.257e-05,176.36,176.35,11.96698885]
[1748127296315,2.257e-05,176.36,176.35,11.96731829]
[1748127303415,2.257e-05,176.36,176.34,5.6691]
[1748127303610,3.33281952,176.36,176.29,118.58112426]
[1748127303812,3.33281952,176.36,176.29,4.24112426]
[1748127304014,3.33281952,176.36,176.3,5.6703]
[1748127304220,3.33279695,176.34,176.3,5.6703]
[1748127304422,5.6698,176.32,176.29,4.24112426]
[1748127304619,5.70948961,176.32,176.29,4.27973859]
[1748127304816,0.03968961,176.32,176.29,0.03861433]
[1748127306227,0.03968961,176.32,176.29,5.70921433]
[1748127306727,0.03968961,176.32,176.3,5.6703]
[1748127307225,0.03968961,176.32,176.29,0.03861433]
[1748127307429,0.03968961,176.32,176.29,5.70931433]
[1748127308729,5.70948961,176.32,176.29,5.70931433]
[1748127310429,0.03968961,176.32,176.29,0.03861433]
[1748127311228,0.03968961,176.32,176.31,5.6701]
[1748127314233,0.03968961,176.32,176.3,5.6704]
[1748127315427,0.03968961,176.32,176.31,5.6701]
[1748127318933,0.03968961,176.32,176.3,5.6704]
[1748127319333,0.03968961,176.32,176.29,3.37141128]
[1748127319538,0.03968961,176.32,176.31,9.00289695]
[1748127323839,0.03968961,176.32,176.31,5.6701]
[1748127330747,8.961e-05,176.32,176.31,5.6701]
[1748127332746,3.8802,176.4,176.39,5.6675]
[1748127336547,3.8802,176.4,176.38,5.70448906]
[1748127340151,3.8802,176.4,176.38,0.03668906]
[1748127340349,3.33279695,176.39,176.3,117.55279695]
[1748127340552,3.33279695,176.39,176.32,3.33279695]
[1748127340748,5.6676,176.39,176.35,5.6686]
[1748127340951,3.8802,176.4,176.32,3.33279695]
[1748127341351,0.04240316,176.38,176.36,5.6683]
[1748127342757,0.04240316,176.38,176.37,5.6682]
[1748127344652,0.04240316,176.38,176.36,5.6684]
[1748127344955,0.04240316,176.38,176.34,0.03880588]
[1748127345756,0.04240316,176.38,176.36,5.6683]
[1748127354773,5.71040316,176.38,176.35,5.6687]
[1748127360678,0.04240316,176.38,176.35,5.6687]
[1748127362579,5.71040316,176.38,176.35,5.6687]
[1748127365475,0.04240316,176.38,176.34,0.03880588]
[1748127366174,5.6689,176.35,176.34,0.03880588]
[1748127370693,9.00169695,176.35,176.34,0.03880588]
[1748127385091,5.6689,176.35,176.34,0.03880588]
[1748127385288,9.00169695,176.35,176.34,0.03880588]
[1748127389093,5.6689,176.35,176.34,0.03880588]
[1748127389291,9.00169695,176.35,176.34,0.03880588]
[1748127393795,117.43279695,176.37,176.34,0.03880588]
[1748127394290,123.10129695,176.37,176.34,5.70790588]
[1748127396994,0.04240316,176.38,176.34,0.03880588]
[1748127397189,0.04240316,176.38,176.34,3.37160283]
[1748127397683,0.04240316,176.38,176.37,5.6682]
[1748127429526,3.8992,176.46,176.4,3.33279695]
[1748127429919,5.666,176.44,176.41,5.6668]
[1748127430420,5.70449554,176.44,176.41,5.70985957]
[1748127433236,0.03849554,176.44,176.42,5.6666]
[1748127433528,0.03849554,176.44,176.41,0.04305957]
[1748127433923,0.03849554,176.44,176.43,5.6663]
[1748127439230,0.03849554,176.44,176.42,5.6665]
[1748127447135,0.03849554,176.44,176.41,0.04305957]
[1748127447837,5.6665,176.43,176.41,0.04305957]
[1748127450737,5.70459554,176.44,176.41,5.70985957]
[1748127452839,0.03849554,176.44,176.42,5.6666]
[1748127453133,0.03849554,176.44,176.41,0.04305957]
[1748127453439,0.03849554,176.44,176.41,5.70985957]
[1748127455142,5.70449554,176.44,176.41,5.70985957]
[1748127461147,5.6663,176.43,176.41,0.04305957]
[1748127461341,3.33279695,176.43,176.41,0.04305957]
[1748127461542,5.31099695,176.43,176.34,113.7]
[1748127461745,5.668,176.38,176.35,5.6687]
[1748127461947,5.668,176.38,176.34,113.7]
[1748127462245,5.668,176.38,176.33,3.33279695]
[1748127462246,3.33279695,176.39,176.33,3.33279695]
[1748127462444,5.6686,176.36,176.34,0.04308393]
[1748127463351,5.6683,176.37,176.34,0.04308393]
[1748127464348,5.6683,176.37,176.34,5.71218393]
[1748127464947,5.70774519,176.38,176.34,5.71218393]
[1748127465148,5.70774519,176.38,176.35,5.6688]
[1748127466641,5.6682,176.37,176.34,0.04308393]
[1748127466847,0.03974519,176.38,176.34,0.04308393]
[1748127467249,5.6683,176.37,176.34,0.04308393]
[1748127467952,5.6689,176.35,176.34,0.04308393]
[1748127468144,9.00169695,176.35,176.34,0.04308393]
[1748127468345,3.33279695,176.35,176.28,113.7]
[1748127468540,5.6695,176.33,176.3,5.6704]
[1748127469351,5.70835112,176.33,176.3,5.70947695]
[1748127470152,5.6699,176.32,176.3,0.03907695]
[1748127470555,0.03885112,176.33,176.3,0.03907695]
[1748127471548,5.70845112,176.33,176.3,0.03907695]
[1748127473254,0.03885112,176.33,176.3,5.70947695]
[1748127475758,5.70855112,176.33,176.3,0.03907695]
[1748127478655,5.70855112,176.33,176.3,5.70947695]
[1748127479858,0.03885112,176.33,176.31,3.33279695]
[1748127480560,0.03885112,176.33,176.32,5.6698]
[1748127503070,0.03885112,176.33,176.3,0.03907695]
[1748127503370,3.33279695,176.32,176.3,0.03907695]
[1748127503572,5.6701,176.31,176.3,0.03907695]
[1748127503873,113.62,176.31,176.25,3.22539763]
[1748127504079,3.33279695,176.28,176.19,5.14449763]
[1748127504371,3.33279695,176.24,176.19,3.22539763]
[1748127504773,0.043245,176.23,176.2,0.04038578]
[1748127504971,3.33279695,176.22,176.2,0.04038578]
[1748127505173,3.33279695,176.2,176.19,3.22539763]
[1748127505570,9.00649695,176.2,176.19,3.22539763]
[1748127505773,3.33279695,176.21,176.19,3.22539763]
[1748127506177,9.00619695,176.21,176.19,3.22539763]
[1748127506680,5.6737,176.2,176.19,3.22539763]
[1748127506980,5.6737,176.2,176.18,0.03970731]
[1748127507678,113.66,176.19,176.09,113.62]
[1748127508069,5.6752,176.16,176.11,5.6762]
[1748127508577,5.6753,176.15,176.1,5.6769]
[1748127508783,5.6753,176.15,176.06,3.22539763]
[1748127508784,113.54,176.14,176.06,3.22539763]
[1748127509084,117.366,176.14,176.02,113.54]
[1748127509777,0.04008222,176.1,176.06,0.03925841]
[1748127510481,0.04008222,176.1,176.09,5.6772]
[1748127510874,0.04008222,176.1,176.06,0.03925841]
[1748127511281,0.04008222,176.1,176.06,5.71715841]
[1748127512085,0.04008222,176.1,176.06,0.03925841]
[1748127512480,0.04008222,176.1,176.09,5.6772]
[1748127513584,0.04008222,176.1,176.08,5.6775]
[1748127513793,0.04008222,176.1,176.06,0.03925841]
[1748127514989,5.71698222,176.1,176.06,0.03925841]
[1748127515195,119.31698222,176.1,176.06,0.03925841]
[1748127515585,113.64008222,176.1,176.06,0.03925841]
[1748127517707,113.64008222,176.1,175.99,113.64]
[1748127518000,5.6775,176.08,176.02,5.6794]
[1748127518200,113.6,176.1,175.99,113.64]
[1748127518396,113.6,176.1,176.03,5.6788]
[1748127518603,0.03909412,176.08,176.03,5.6788]
[1748127518901,5.71659412,176.08,176.03,5.6788]
[1748127520503,0.03909412,176.08,175.99,113.64]
[1748127521098,5.22167167,176.07,175.94,113.64]
[1748127521299,0.03784843,176.02,175.94,113.64]
[1748127522198,0.03784843,176.02,175.98,5.6805]
[1748127522398,0.03784843,176.02,175.94,113.64]
[1748127522801,0.03784843,176.02,175.95,1.9813]
[1748127523199,0.03784843,176.02,175.98,5.6804]
[1748127523405,0.03784843,176.02,175.95,1.9813]
[1748127524206,0.03784843,176.02,175.99,5.6801]
[1748127524507,0.03784843,176.02,175.95,1.9813]
[1748127525013,0.03784843,176.02,176.01,5.6797]
[1748127526110,0.03784843,176.02,175.95,1.9813]
[1748127527107,0.03784843,176.02,176.0,5.6799]
[1748127527309,0.03784843,176.02,175.96,5.22645307]
[1748127527509,0.03784843,176.02,175.96,5.22652287]
[1748127528010,0.03784843,176.02,175.95,1.9813]
[1748127529806,0.03784843,176.02,175.96,5.22816118]
[1748127530000,0.03784843,176.02,176.01,5.6797]
[1748127530205,0.03784843,176.02,175.95,1.9813]
[1748127530714,0.03784843,176.02,175.99,5.6803]
[1748127531313,0.03784843,176.02,175.95,1.9813]
[1748127531514,0.03784843,176.02,175.95,7.20946118]
[1748127531817,0.03784843,176.02,175.96,5.2264168]
[1748127532717,0.03784843,176.02,176.01,5.6797]
[1748127534812,0.03784843,176.02,176.0,119.3799]
[1748127535113,0.03784843,176.02,175.97,113.7]
[1748127537615,0.03784843,176.02,176.01,5.6797]
[1748127538224,0.03784843,176.02,175.95,1.9813]
[1748127538517,0.03784843,176.02,175.9,117.36]
[1748127538714,0.04184557,175.98,175.9,117.36]
[1748127539219,0.04184557,175.98,175.93,5.682]
[1748127539616,0.04184557,175.98,175.94,5.6817]
[1748127540108,0.04184557,175.98,175.9,117.36]
[1748127541404,0.04184557,175.98,175.9,123.0432]
[1748127541610,0.04184557,175.98,175.9,117.36]
[1748127542523,0.04184557,175.98,175.92,5.6825]
[1748127542815,0.04184557,175.98,175.9,117.36]
[1748127544318,0.04184557,175.98,175.93,5.6821]
[1748127544513,0.04184557,175.98,175.9,117.36]
[1748127545610,0.04184557,175.98,175.94,5.6817]
[1748127546322,0.04184557,175.98,175.9,117.36]
[1748127547522,0.04184557,175.98,175.96,5.681]
[1748127547723,0.04184557,175.98,175.9,121.36]
[1748127547925,0.04184557,175.98,175.9,117.36]
[1748127548423,0.04184557,175.98,175.95,5.6815]
[1748127549124,0.04184557,175.98,175.9,122.59093358]
[1748127549324,0.04184557,175.98,175.9,122.59060273]
[1748127549827,0.04184557,175.98,175.95,5.6814]
[1748127550026,0.04184557,175.98,175.9,122.59060273]
[1748127550533,0.04184557,175.98,175.96,5.681]
[1748127551328,0.04184557,175.98,175.9,122.59060273]
[1748127551825,0.04184557,175.98,175.96,5.6811]
[1748127552731,0.04184557,175.98,175.97,5.681]
[1748127555130,4.557e-05,175.98,175.97,5.681]
[1748127555320,6.99509997,176.07,175.97,5.22870547]
[1748127555526,6.99509997,176.08,176.0,5.22870547]
[1748127555725,6.99509997,176.08,176.06,5.6781]
[1748127555922,6.99509997,176.08,176.02,122.58]
[1748127556422,0.04332745,176.07,176.05,5.6782]
[1748127557534,0.04332745,176.07,176.03,0.04095198]
[1748127559638,5.72132745,176.07,176.03,0.04095198]
[1748127560839,0.04332745,176.07,176.03,0.04095198]
[1748127561241,5.6783,176.06,176.03,0.04095198]
[1748127562637,0.04332745,176.07,176.03,0.04095198]
[1748127563936,0.04332745,176.07,176.03,5.26965745]
[1748127564137,0.04332745,176.07,176.04,1.9382]
[1748127564643,0.04332745,176.07,176.06,5.6781]
[1748127565344,0.04332745,176.07,176.04,7.6167]
[1748127565542,0.04332745,176.07,176.03,0.04095198]
[1748127566143,5.6781,176.06,176.03,0.04095198]
[1748127566643,5.6784,176.05,176.03,0.04095198]
[1748127566845,0.04332745,176.07,176.03,0.04095198]
[1748127567246,5.6786,176.05,176.03,0.04095198]
[1748127571739,5.6782,176.06,176.03,0.04095198]
[1748127573257,5.72112745,176.07,176.03,0.04095198]
[1748127573757,5.6781,176.06,176.03,0.04095198]
[1748127574056,0.04332745,176.07,176.03,0.04095198]
[1748127574358,5.72132745,176.07,176.03,0.04095198]
[1748127574757,0.04332745,176.07,176.03,5.71995198]
[1748127576558,5.72112745,176.07,176.03,5.71995198]
[1748127577058,0.04332745,176.07,176.03,0.04095198]
[1748127577953,0.04332745,176.07,176.03,5.71925198]
[1748127579358,0.04332745,176.07,176.03,0.04095198]
[1748127579659,0.04332745,176.07,176.03,120.62095198]
[1748127581258,0.04332745,176.07,176.06,5.6775]
[1748127581449,0.04332745,176.07,176.03,120.62095198]
[1748127581647,0.04332745,176.07,176.04,5.6779]
[1748127582354,0.04332745,176.07,176.05,5.6778]
[1748127584459,0.04332745,176.07,176.03,0.04095198]
[1748127584858,5.6782,176.04,176.03,0.04095198]
[1748127585564,5.6776,176.06,176.03,0.04095198]
[1748127586057,5.6778,176.06,176.03,0.04095198]
[1748127586256,0.04332745,176.07,176.03,0.04095198]
[1748127586763,5.6782,176.04,176.03,0.04095198]
[1748127590867,5.6779,176.05,176.03,0.04095198]
[1748127591860,5.6776,176.06,176.03,0.04095198]
[1748127592072,2.02862745,176.07,176.03,0.04095198]
[1748127592467,5.6776,176.06,176.03,0.04095198]
[1748127592969,5.6779,176.05,176.03,0.04095198]
[1748127593168,2.02862745,176.07,176.03,0.04095198]
[1748127593466,0.04332745,176.07,176.03,0.04095198]
[1748127593656,0.04332745,176.07,176.06,5.6775]
[1748127594270,0.04332745,176.07,176.06,126.2775]
[1748127594866,127.59509997,176.13,176.06,126.2775]
[1748127594867,6.99509997,176.13,176.06,120.6]
[1748127595067,6.99509997,176.13,176.07,5.22583484]
[1748127595771,0.0421786,176.12,176.08,0.03632562]
[1748127596269,0.0421786,176.12,176.09,5.6765]
[1748127596466,0.0421786,176.12,176.08,0.03632562]
[1748127597773,0.0421786,176.12,176.08,5.71292562]
[1748127597972,0.0421786,176.12,176.08,0.03632562]
[1748127598376,0.0421786,176.12,176.09,5.6763]
[1748127598676,0.0421786,176.12,176.08,0.03632562]
[1748127598976,0.0421786,176.12,176.11,5.6759]
[1748127599876,0.0421786,176.12,176.11,126.2359]
[1748127602278,0.0421786,176.12,176.11,120.56]
[1748127603269,0.0421786,176.12,176.11,126.2359]
[1748127603476,0.0421786,176.12,176.11,120.56]
[1748127607175,0.0421786,176.12,176.09,120.96]
[1748127607680,0.0421786,176.12,176.08,0.03632562]
[1748127608080,0.0421786,176.12,176.11,5.6759]
[1748127608282,11.02519997,176.21,176.1,5.22583484]
[1748127608484,11.02519997,176.21,176.11,107.86]
[1748127608685,11.02519997,176.21,176.11,109.7323]
[1748127609285,0.04175004,176.18,176.14,0.04201259]
[1748127610988,0.04175004,176.18,176.14,5.71691259]
[1748127611287,0.04175004,176.18,176.14,0.04201259]
[1748127612491,5.6741,176.17,176.14,0.04201259]
[1748127612784,0.04175004,176.18,176.14,0.04201259]
[1748127613992,5.6742,176.17,176.14,0.04201259]
[1748127614291,0.04175004,176.18,176.14,0.04201259]
[1748127614684,5.6741,176.17,176.14,0.04201259]
[1748127614888,0.04175004,176.18,176.14,0.04201259]
[1748127615391,126.20758488,176.18,176.14,0.04201259]
[1748127615588,126.20758488,176.18,176.09,120.94]
[1748127615892,126.20758488,176.18,176.07,107.86]
[1748127615893,126.20758488,176.18,176.06,5.6774]
[1748127616090,126.16583484,176.18,176.06,5.6774]
[1748127616291,5.22583484,176.15,176.05,120.94]
[1748127616488,0.03997179,176.12,176.08,0.04359439]
[1748127618195,5.6762,176.11,176.08,0.04359439]
[1748127618391,0.03997179,176.12,176.08,0.04359439]
[1748127618994,5.6765,176.1,176.08,0.04359439]
[1748127619587,5.6766,176.09,176.08,0.04359439]
[1748127619894,0.03997179,176.12,176.08,0.04359439]
[1748127620192,5.6763,176.1,176.08,0.04359439]
[1748127620492,0.03997179,176.12,176.08,0.04359439]
[1748127620699,0.03997179,176.12,176.08,5.72029439]
[1748127621406,0.03997179,176.12,176.08,0.04359439]
[1748127621907,5.71567179,176.12,176.08,0.04359439]
[1748127622100,0.03997179,176.12,176.08,0.04359439]
[1748127624103,5.676,176.11,176.08,0.04359439]
[1748127624810,5.6763,176.1,176.08,0.04359439]
[1748127625207,0.03997179,176.12,176.08,0.04359439]
[1748127626007,5.676,176.11,176.08,0.04359439]
[1748127627110,5.6763,176.1,176.08,0.04359439]
[1748127627305,0.03997179,176.12,176.08,0.04359439]
[1748127627910,5.676,176.11,176.08,0.04359439]
[1748127629112,0.03997179,176.12,176.08,0.04359439]
[1748127629717,0.03997179,176.12,176.08,5.72049439]
[1748127631702,0.03997179,176.12,176.09,5.6765]
[1748127632308,0.03997179,176.12,176.08,0.04359439]
[1748127632507,0.03997179,176.12,176.09,126.6365]
[1748127633813,0.03997179,176.12,176.1,5.6762]
[1748127634520,0.03997179,176.12,176.11,5.6759]
[1748127635918,6.99509997,176.19,176.1,7.11263484]
[1748127636112,6.99509997,176.19,176.11,1.8881]
[1748127636517,11.00149997,176.24,176.15,5.6746]
[1748127636712,11.00149997,176.24,176.15,125.0546]
[1748127636914,5.71314718,176.21,176.18,0.03669722]
[1748127637214,0.04024718,176.21,176.18,0.03669722]
[1748127637517,5.22583484,176.19,176.11,119.38]
[1748127637709,5.22583484,176.19,176.1,119.38]
[1748127637912,5.6749,176.15,176.09,125.0564]
[1748127638111,2.0277,176.18,176.09,125.0564]
[1748127638312,5.71167242,176.15,176.12,0.0366889]
[1748127639613,6.99509997,176.21,176.13,119.38]
[1748127639820,6.99509997,176.21,176.15,5.215168]
[1748127640120,6.99509997,176.21,176.15,5.21532189]
[1748127640520,0.04085934,176.2,176.16,0.03816638]
[1748127641320,0.04085934,176.2,176.19,5.6734]
[1748127641615,0.04085934,176.2,176.16,0.03816638]
[1748127641820,0.04085934,176.2,176.17,119.38]
[1748127643019,0.04085934,176.2,176.19,5.6734]
[1748127643416,0.04085934,176.2,176.18,5.6736]
[1748127644219,0.04085934,176.2,176.16,0.03816638]
[1748127644718,5.6739,176.18,176.16,0.03816638]
[1748127645225,5.674,176.17,176.16,0.03816638]
[1748127645518,3.8992,176.19,176.16,0.03816638]
[1748127645920,5.6738,176.18,176.16,0.03816638]
[1748127646319,5.6737,176.18,176.16,0.03816638]
[1748127647221,3.8992,176.19,176.16,0.03816638]
[1748127647434,3.8992,176.19,176.09,119.36]
[1748127647629,12.40772282,176.19,176.05,119.36]
[1748127647923,8.50852282,176.15,176.01,1.8521]
[1748127648128,121.2486,176.14,175.99,119.36]
[1748127648328,5.6771,176.08,176.03,5.6785]
[1748127648532,121.2486,176.14,176.04,0.03764437]
[1748127648533,0.03687677,176.07,176.04,0.03764437]
[1748127648722,0.04235249,176.07,176.04,0.03764437]
[1748127649223,0.04235249,176.07,175.99,119.36]
[1748127649425,5.6786,176.03,175.96,5.6805]
[1748127649623,121.2843,176.06,175.95,119.38]
[1748127650426,0.04070718,176.02,175.99,0.0389909]
[1748127653730,5.71960718,176.02,175.99,0.0389909]
[1748127653927,0.04070718,176.02,175.99,0.0389909]
[1748127654335,0.04070718,176.02,175.93,5.6815]
[1748127654336,5.6799,175.99,175.93,5.6815]
[1748127654525,1.877,176.01,175.86,1.9773]
[1748127654731,1.8851,175.98,175.86,1.9773]
[1748127655029,119.4,175.97,175.86,1.9773]
[1748127655226,0.04071195,175.93,175.86,1.9773]
[1748127656136,1.877,176.01,175.88,8.50852282]
[1748127656429,1.877,176.01,175.89,240.96852282]
[1748127656621,1.877,176.01,175.97,5.6803]
[1748127656818,124.56,176.03,175.94,124.56]
[1748127657024,4.0681,176.06,175.94,124.56]
[1748127657233,0.0413308,176.02,175.98,0.03642598]
[1748127658633,0.0413308,176.02,175.99,5.6798]
[1748127658831,0.0413308,176.02,175.98,0.03642598]
[1748127660238,5.6792,176.01,175.98,0.03642598]
[1748127660541,124.58,176.01,175.94,124.56]
[1748127660731,124.58,176.01,175.9,124.58]
[1748127661526,0.03922287,175.97,175.9,124.58]
[1748127662239,0.03922287,175.97,175.9,133.08852282]
[1748127662633,0.03922287,175.97,175.96,5.6808]
[1748127663542,124.58,176.05,176.0,5.6795]
[1748127663844,124.58,176.05,175.95,124.58]
[1748127664545,0.04132377,176.02,175.98,0.04163018]
[1748127664936,0.04132377,176.02,176.0,5.6793]
[1748127665135,0.04132377,176.02,175.98,0.04163018]
[1748127666040,0.04132377,176.02,176.0,5.6793]
[1748127666343,0.04132377,176.02,175.99,5.6796]
[1748127666542,0.04132377,176.02,175.98,0.04163018]
[1748127667629,5.6795,176.0,175.98,0.04163018]
[1748127667841,0.04132377,176.02,175.98,0.04163018]
[1748127668542,5.6793,176.01,175.98,0.04163018]
[1748127669241,5.6797,176.0,175.98,0.04163018]
[1748127669438,0.04132377,176.02,175.98,0.04163018]
[1748127669644,0.04132377,176.02,175.89,124.6]
[1748127669844,5.6804,175.98,175.93,5.6817]
[1748127670046,124.6,176.0,175.93,5.6817]
[1748127670544,5.6807,175.97,175.93,5.6817]
[1748127670952,5.71619717,175.98,175.94,5.6814]
[1748127671445,5.6805,175.97,175.93,5.6817]
[1748127671649,5.6805,175.97,175.89,124.6]
[1748127671650,0.03599717,175.98,175.89,124.6]
[1748127671847,1.952,175.97,175.89,124.6]
[1748127672149,5.6817,175.94,175.89,130.2828]
[1748127672336,0.0391904,175.93,175.86,490.66]
[1748127672646,0.0391904,175.93,175.85,124.6]
[1748127673039,5.6824,175.91,175.85,124.6]
[1748127673342,0.0391904,175.93,175.85,124.6]
[1748127673647,0.0391904,175.93,175.9,5.6827]
[1748127673848,0.0391904,175.93,175.85,124.6]
[1748127674347,5.7210904,175.93,175.85,124.6]
[1748127674547,0.0391904,175.93,175.85,124.6]
[1748127675046,0.0391904,175.93,175.81,124.62]
[1748127675243,0.04027639,175.89,175.81,124.62]
[1748127675543,0.04027639,175.89,175.77,124.62]
[1748127675749,0.04129581,175.85,175.77,124.62]
[1748127676447,0.04129581,175.85,175.81,5.6856]
[1748127676747,0.04129581,175.85,175.77,124.62]
[1748127676947,0.04129581,175.85,175.82,5.6851]
[1748127677144,0.04129581,175.85,175.77,124.62]
[1748127677551,0.04129581,175.85,175.81,5.6853]
[1748127677754,0.04129581,175.85,175.77,124.62]
[1748127679146,0.04129581,175.85,175.84,5.6847]
[1748127679547,0.04129581,175.85,175.77,124.62]
[1748127679745,0.04129581,175.85,175.83,5.6848]
[1748127680350,0.04129581,175.85,175.84,5.6847]
[1748127680647,0.04129581,175.85,175.77,124.62]
[1748127681547,0.04129581,175.85,175.81,5.6853]
[1748127681746,0.04129581,175.85,175.77,124.62]
[1748127683050,0.04129581,175.85,175.79,5.6862]
[1748127683260,5.6847,175.84,175.77,124.62]
[1748127683956,5.6847,175.84,175.78,5.6866]
[1748127684150,5.6851,175.83,175.77,124.62]
[1748127684354,0.04129581,175.85,175.77,124.62]
[1748127685153,5.6849,175.84,175.79,5.6861]
[1748127685658,0.04129581,175.85,175.77,124.62]
[1748127685956,5.72589581,175.85,175.8,5.6857]
[1748127686454,0.04129581,175.85,175.81,5.6856]
[1748127686655,0.04129581,175.85,175.77,124.62]
[1748127687057,5.6847,175.84,175.79,5.6862]
[1748127687254,0.04129581,175.85,175.77,124.62]
[1748127687559,5.6849,175.84,175.79,5.6861]
[1748127688159,0.04129581,175.85,175.79,5.6863]
[1748127688659,5.685,175.83,175.79,5.6863]
[1748127688956,5.685,175.83,175.77,124.62]
[1748127688957,126.32,175.82,175.72,128.2811]
[1748127689157,5.6876,175.75,175.67,617.54]
[1748127689359,0.03908229,175.73,175.68,1.961]
[1748127689559,0.03908229,175.73,175.64,3.7412]
[1748127689859,0.03908229,175.73,175.72,5.6886]
[1748127690154,0.03908229,175.73,175.68,126.32]
[1748127690363,0.03908229,175.73,175.7,5.6891]
[1748127690557,0.03908229,175.73,175.68,126.32]
[1748127692265,0.03908229,175.73,175.72,5.6886]
[1748127694156,5.6849,175.84,175.68,134.82852282]
[1748127694352,126.38,175.83,175.68,134.82852282]